Workbook

Sheet 总表
A1: 淮北市东昱建设投资集团有限公司公开招聘工作人员面试成绩、 笔试与面试合成成绩表
A2: 序号 | B2: 岗位 | C2: 抽签号 | D2: 笔试分数 | E2: 笔试折合成绩（50%） | F2: 面试 | G2: 面试折合成绩（50%） | H2: 笔试、面试合成成绩
A3: 1 | B3: 副部长 | C3: 5 | D3: 51 | E3: =D3*50% -> 25.5 | F3: 83.2 | G3: =F3*50% -> 41.6 | H3: =G3+E3 -> 67.1
A4: 2 | B4: 副部长 | C4: 1 | D4: 42 | E4: 21 | F4: 82.6 | G4: 41.3 | H4: 62.3
A5: 3 | B5: 副部长 | C5: 3 | D5: 46 | E5: 23 | F5: 75.6 | G5: 37.8 | H5: 60.8
A6: 4 | B6: 副部长 | C6: 4 | D6: 42.5 | E6: 21.25 | F6: 78.8 | G6: 39.4 | H6: 60.65
A7: 5 | B7: 副部长 | C7: 2 | D7: 42 | E7: 21 | F7: 78.2 | G7: 39.1 | H7: 60.1
A9: 序号 | B9: 岗位 | C9: 抽签号 | D9: 笔试分数 | E9: 笔试折合成绩（50%） | F9: 面试 | G9: 面试折合成绩（50%） | H9: 笔试、面试合成成绩
A10: 1 | B10: 职业经理人 | C10: 3 | D10: 49.5 | E10: =D10*50% -> 24.75 | F10: 87.2 | G10: =F10*50% -> 43.6 | H10: =G10+E10 -> 68.35
A11: 2 | B11: 职业经理人 | C11: 1 | D11: 49 | E11: 24.5 | F11: 75.6 | G11: 37.8 | H11: 62.3
A12: 3 | B12: 职业经理人 | C12: 2 | D12: 50 | E12: 25 | F12: 71.2 | G12: 35.6 | H12: 60.6
A13: 4 | B13: 职业经理人 | C13: 4 | D13: 49 | E13: 24.5 | F13: 71.6 | G13: 35.8 | H13: 60.3
A15: 序号 | B15: 岗位 | C15: 抽签号 | D15: 笔试分数 | E15: 笔试折合成绩（50%） | F15: 面试 | G15: 面试折合成绩（50%） | H15: 笔试、面试合成成绩
A16: 1 | B16: 秘书 | C16: 2 | D16: 53 | E16: =D16*50% -> 26.5 | F16: 86.6 | G16: =F16*50% -> 43.3 | H16: =G16+E16 -> 69.8
A17: 2 | B17: 秘书 | C17: 1 | D17: 43.5 | E17: 21.75 | F17: 63.8 | G17: 31.9 | H17: 53.65
A19: 序号 | B19: 岗位 | C19: 抽签号 | D19: 笔试分数 | E19: 笔试折合成绩（50%） | F19: 面试 | G19: 面试折合成绩（50%） | H19: 笔试、面试合成成绩
A20: 1 | B20: 工程部职员 | C20: 6 | D20: 52 | E20: 26 | F20: 77.2 | G20: 38.6 | H20: 64.6
A21: 2 | B21: 工程部职员 | C21: 4 | D21: 46 | E21: 23 | F21: 71.8 | G21: 35.9 | H21: 58.9
A22: 3 | B22: 工程部职员 | C22: 2 | D22: 45 | E22: 22.5 | F22: 70.8 | G22: 35.4 | H22: 57.9
A23: 4 | B23: 工程部职员 | C23: 3 | D23: 42.5 | E23: 21.25 | F23: 71.6 | G23: 35.8 | H23: 57.05
A24: 5 | B24: 工程部职员 | C24: 5 | D24: 44 | E24: 22 | F24: 68.4 | G24: 34.2 | H24: 56.2
A26: 序号 | B26: 岗位 | C26: 抽签号 | D26: 笔试分数 | E26: 笔试折合成绩（50%） | F26: 面试 | G26: 面试折合成绩（50%） | H26: 笔试、面试合成成绩
A27: 1 | B27: 综合岗 | C27: 2 | D27: 61 | E27: =D27*50% -> 30.5 | F27: 86.4 | G27: =F27*50% -> 43.2 | H27: =G27+E27 -> 73.7
A28: 2 | B28: 综合岗 | C28: 13 | D28: 59 | E28: 29.5 | F28: 84.8 | G28: 42.4 | H28: 71.9
A29: 3 | B29: 综合岗 | C29: 4 | D29: 59 | E29: 29.5 | F29: 83.8 | G29: 41.9 | H29: 71.4
A30: 4 | B30: 综合岗 | C30: 7 | D30: 56 | E30: 28 | F30: 83.3 | G30: 41.65 | H30: 69.65
A31: 5 | B31: 综合岗 | C31: 9 | D31: 61.5 | E31: =D31*50% -> 30.75 | F31: 77.6 | G31: 38.8 | H31: 69.55
A32: 6 | B32: 综合岗 | C32: 3 | D32: 60 | E32: 30 | F32: 78.2 | G32: 39.1 | H32: 69.1
A33: 7 | B33: 综合岗 | C33: 5 | D33: 58 | E33: 29 | F33: 79.6 | G33: 39.8 | H33: 68.8
A34: 8 | B34: 综合岗 | C34: 8 | D34: 61 | E34: 30.5 | F34: 73 | G34: 36.5 | H34: 67
A35: 9 | B35: 综合岗 | C35: 6 | D35: 56 | E35: 28 | F35: 75.6 | G35: 37.8 | H35: 65.8
A36: 10 | B36: 综合岗 | C36: 12 | D36: 56 | E36: 28 | F36: 75 | G36: 37.5 | H36: 65.5
A37: 11 | B37: 综合岗 | C37: 1 | D37: 56 | E37: 28 | F37: 74.8 | G37: 37.4 | H37: 65.4
A38: 12 | B38: 综合岗 | C38: 11 | D38: 58.5 | E38: 29.25 | F38: 71 | G38: 35.5 | H38: 64.75
A39: 13 | B39: 综合岗 | D39: 56.5 | E39: 28.25 | F39: 缺考 | H39: 28.25
A41: 序号 | B41: 岗位 | C41: 抽签号 | D41: 笔试分数 | E41: 笔试折合成绩（50%） | F41: 面试 | G41: 面试折合成绩（50%） | H41: 笔试、面试合成成绩
A42: 1 | B42: 金融岗 | C42: 2 | D42: 56 | E42: =D42*50% -> 28 | F42: 72.6 | G42: =F42*50% -> 36.3 | H42: =E42+G42 -> 64.3
A43: 2 | B43: 金融岗 | C43: 10 | D43: 48 | E43: 24 | F43: 78.6 | G43: 39.3 | H43: 63.3
A44: 3 | B44: 金融岗 | C44: 7 | D44: 52 | E44: 26 | F44: 72.4 | G44: 36.2 | H44: 62.2
A45: 4 | B45: 金融岗 | C45: 3 | D45: 50.5 | E45: 25.25 | F45: 73.4 | G45: 36.7 | H45: 61.95
A46: 5 | B46: 金融岗 | C46: 4 | D46: 46.5 | E46: 23.25 | F46: 72.8 | G46: 36.4 | H46: 59.65
A47: 6 | B47: 金融岗 | C47: 9 | D47: 52 | E47: 26 | F47: 67 | G47: 33.5 | H47: 59.5
A48: 7 | B48: 金融岗 | C48: 8 | D48: 40 | E48: 20 | F48: 71.2 | G48: 35.6 | H48: 55.6
A49: 8 | B49: 金融岗 | C49: 1 | D49: 41 | E49: 20.5 | F49: 69.2 | G49: 34.6 | H49: 55.1
A50: 9 | B50: 金融岗 | C50: 5 | D50: 41 | E50: 20.5 | F50: 64.6 | G50: 32.3 | H50: 52.8
A51: 10 | B51: 金融岗 | D51: 40 | E51: 20 | F51: 缺考 | H51: 20
